bitfinex/quotes_SOLUSD_20250307
["timestamp","ask_amount","ask_price","bid_price","bid_amount"]
[1741331974676,0.14216157,144.55,144.52,2.0]
[1741331974981,24.2113,144.56,144.52,2.0]
[1741331974982,6.9175,144.56,144.53,2.0]
[1741331975564,12.06413847,144.56,144.52,2.0]
[1741331976277,12.06413847,144.56,144.51,23.91720652]
[1741331976571,5.14663847,144.55,144.52,2.0]
[1741331977159,12.06463847,144.55,144.52,2.0]
[1741331977779,5.14663847,144.54,144.52,2.0]
[1741331978470,5.14663847,144.54,144.53,2.0]
[1741331978669,12.06513847,144.54,144.53,2.0]
[1741331978884,12.06513847,144.54,144.52,2.0]
[1741331979257,5.14663847,144.54,144.51,23.91720652]
[1741331979472,5.14663847,144.54,144.53,2.0]
[1741331980084,12.06513847,144.54,144.53,2.0]
[1741331980488,12.06443847,144.56,144.54,2.0]
[1741331981570,5.14663847,144.55,144.54,2.0]
[1741331981768,5.14663847,144.55,144.54,2.14216157]
[1741331982091,0.03,144.59,144.58,2.14216157]
[1741331982386,0.03,144.59,144.58,106.01720652]
[1741331984016,0.03,144.59,144.58,82.1]
[1741331984918,0.03,144.59,144.57,2.0]
[1741331985516,0.03,144.59,144.56,36.90614276]
[1741331987307,0.03,144.59,144.57,2.0]
[1741331987509,0.03,144.59,144.56,36.90614276]
[1741331987719,0.03,144.59,144.55,2.14216157]
[1741331988498,0.03,144.59,144.56,2.0]
[1741331988899,0.14216157,144.58,144.55,2.0]
[1741331989101,0.14216157,144.58,144.57,2.0]
[1741331989522,6.9461,144.59,144.57,2.0]
[1741331992120,6.9461,144.59,144.55,36.90614276]
[1741331993025,0.14216157,144.58,144.55,2.0]
[1741331993321,6.917,144.57,144.54,117.58923273]
[1741331993498,6.917,144.57,144.55,2.0]
[1741331994022,6.917,144.57,144.56,2.0]
[1741331994230,6.917,144.57,144.55,36.90614276]
[1741331994629,6.917,144.57,144.54,117.58923273]
[1741331994922,6.917,144.57,144.55,2.0]
[1741331995125,6.917,144.57,144.56,2.0]
[1741331995924,6.917,144.57,144.55,2.0]
[1741331997023,6.917,144.57,144.55,2.033]
[1741331997524,6.917,144.57,144.56,2.0]
[1741331998424,6.917,144.57,144.55,2.033]
[1741331998725,6.917,144.57,144.56,2.0]
[1741332000727,0.14216157,144.56,144.55,0.033]
[1741332001020,6.38216157,144.56,144.51,2.0]
[1741332001205,18.64964886,144.55,144.5,0.033]
[1741332001607,100.64964886,144.55,144.5,0.033]
[1741332002034,100.64964886,144.55,144.5,2.033]
[1741332002228,100.64964886,144.55,144.5,0.033]
[1741332002405,0.14216157,144.53,144.5,0.033]
[1741332004229,18.79181043,144.53,144.5,0.033]
[1741332004433,6.9194,144.52,144.5,0.033]
[1741332005635,6.9194,144.52,144.5,2.033]
[1741332007036,6.9194,144.52,144.5,0.033]
[1741332007215,6.9194,144.52,144.5,2.033]
[1741332008326,6.9194,144.52,144.5,0.033]
[1741332009135,18.27032765,144.51,144.5,0.033]
[1741332009512,6.38216157,144.51,144.5,0.033]
[1741332009919,23.53708173,144.51,144.5,0.033]
[1741332010520,30.45698173,144.51,144.5,0.033]
[1741332012036,13.30206157,144.51,144.5,0.033]
[1741332012241,3.53683234,144.53,144.52,2.0]
[1741332012546,3.53683234,144.53,144.52,23.84354714]
[1741332012751,6.9483,144.55,144.52,2.0]
[1741332013234,6.9483,144.55,144.53,2.0]
[1741332013418,15.22959799,144.54,144.5,0.17516157]
[1741332013724,13.77521551,144.53,144.5,0.17516157]
[1741332013921,13.77521551,144.53,144.5,148.51608997]
[1741332014131,0.03,144.55,144.54,0.14216157]
[1741332015625,0.03,144.55,144.53,2.0]
[1741332016140,0.03,144.55,144.52,82.5409284]
[1741332016347,0.03,144.55,144.53,2.0]
[1741332017344,0.03,144.55,144.52,82.5409284]
[1741332017531,0.03,144.55,144.51,2.14216157]
[1741332017734,0.03,144.55,144.52,2.0]
[1741332017959,0.17216157,144.55,144.52,2.0]
[1741332018160,22.3359348,144.54,144.53,2.14216157]
[1741332018434,0.03,144.55,144.53,2.0]
[1741332019267,6.948,144.55,144.53,2.0]
[1741332019665,26.86562107,144.55,144.53,2.0]
[1741332019973,19.94762107,144.55,144.54,2.0]
[1741332020134,0.03,144.55,144.54,2.0]
[1741332020662,0.03,144.55,144.54,23.98570871]
[1741332023083,0.03,144.55,144.54,141.05158425]
[1741332023250,0.03,144.55,144.54,227.50123311]
[1741332023651,0.03,144.55,144.54,187.00803711]
[1741332023965,0.03,144.55,144.54,82.5409284]
[1741332024265,0.03,144.55,144.52,2.033]
[1741332024459,0.03,144.55,144.53,2.0]
[1741332025169,0.03,144.55,144.54,23.98570871]
[1741332025951,0.03,144.55,144.54,2.0]
[1741332026364,0.03,144.55,144.53,80.5409284]
[1741332026365,0.03,144.55,144.53,82.5409284]
[1741332027572,0.03,144.55,144.53,104.38447554]
[1741332027778,0.03,144.55,144.54,2.0]
[1741332028148,0.03,144.55,144.53,104.38447554]
[1741332028669,0.03,144.55,144.54,23.98570871]
[1741332032677,0.03,144.55,144.54,30.90420871]
[1741332033566,0.03,144.55,144.54,23.98570871]
[1741332033957,0.03,144.55,144.54,30.90420871]
[1741332035173,0.03,144.59,144.54,30.90420871]
[1741332035174,0.03,144.59,144.58,25.55950871]
[1741332035486,0.03,144.59,144.58,345.18403711]
[1741332036085,0.0001,144.59,144.58,385.67723311]
[1741332036261,0.0001,144.59,144.58,392.59373311]
[1741332036463,0.0001,144.59,144.58,418.63513123]
[1741332036676,0.0001,144.59,144.58,383.77088503]
[1741332038081,0.0001,144.59,144.58,418.63513123]
[1741332038289,0.0001,144.59,144.58,730.63513123]
[1741332038988,0.03,144.66,144.65,2.14216157]
[1741332039186,0.03,144.66,144.65,37.00640777]
[1741332039390,0.03,144.66,144.65,117.54733617]
[1741332041275,0.03,144.66,144.65,210.91018503]
[1741332042990,0.03,144.66,144.65,192.26053617]
[1741332045402,0.03,144.66,144.65,375.57018503]
[1741332045772,0.03,144.66,144.65,410.5765928]
[1741332045977,0.03,144.7,144.66,0.14216157]
[1741332046179,0.03,144.7,144.66,73.321487]
[1741332046379,0.03,144.7,144.69,20.14216157]
[1741332046580,0.03,144.7,144.69,274.20747021]
[1741332046781,0.03,144.7,144.69,272.75683123]
[1741332047289,0.03,144.7,144.69,591.66813123]
[1741332050480,0.03,144.73,144.72,2.14216157]
[1741332050806,0.03,144.73,144.72,185.34733617]
[1741332051682,0.03,144.73,144.72,192.25713617]
[1741332052803,0.03,144.73,144.72,185.34733617]
[1741332053504,0.03,144.73,144.72,192.25713617]
[1741332054312,0.03,144.73,144.72,210.90678503]
[1741332054513,0.03,144.79,144.76,0.14216157]
[1741332054801,0.03,144.79,144.78,36.8642462]
[1741332055002,0.03,144.79,144.78,37.00640777]
[1741332055201,0.03,144.79,144.78,117.54733617]
[1741332055708,0.03,144.79,144.78,185.34733617]
[1741332055913,0.03,144.79,144.78,192.25433617]
[1741332056621,0.03,144.81,144.8,22.14216157]
[1741332056795,0.03,144.81,144.8,246.45158237]
[1741332058316,0.03,144.81,144.8,253.35758237]
[1741332058628,0.03,144.81,144.8,565.35758237]
[1741332059139,0.03,144.81,144.8,218.49333617]
[1741332060126,0.03,144.82,144.81,2.0]
[1741332060329,1.5319,144.91,144.84,20.0]
[1741332060514,14.5291,144.95,144.94,2.0]
[1741332060835,14.5291,144.95,144.93,2.0]
[1741332061137,14.5291,144.95,144.94,2.0]
[1741332061515,1.5141,144.95,144.94,2.0]
[1741332061717,6.8978,144.98,144.95,2.14216157]
[1741332061924,6.8978,144.98,144.97,2.0]
[1741332062130,6.897,144.99,144.97,2.0]
[1741332062732,0.14216157,144.98,144.94,2.0]
[1741332062949,0.14216157,144.96,144.93,2.0]
[1741332063237,0.14216157,144.96,144.9,121.7051746]
[1741332063238,0.14216157,144.96,144.92,2.0]
[1741332063442,0.14216157,144.96,144.93,2.0]
[1741332064145,6.8989,144.95,144.92,2.0]
[1741332064337,6.8989,144.95,144.91,0.14216157]
[1741332064338,0.14216157,144.94,144.91,2.0]
[1741332064553,18.79181043,144.94,144.89,2.0]
[1741332064841,106.1462,144.95,144.89,2.0]
[1741332064842,53.60346211,144.95,144.91,2.0]
[1741332065156,28.36512617,144.93,144.89,117.4051746]
[1741332065317,28.36512617,144.93,144.89,2.0]
[1741332065318,0.14216157,144.92,144.89,2.0]
[1741332065513,0.14216157,144.92,144.88,2.0]
[1741332065748,25.24644249,144.92,144.88,2.0]
[1741332065935,0.14216157,144.92,144.87,166.48]
[1741332066143,6.9008,144.91,144.87,166.48]
[1741332066321,6.9008,144.91,144.89,2.0]
[1741332066643,6.9008,144.91,144.87,201.3442462]
[1741332066843,6.9008,144.91,144.87,199.3442462]
[1741332067029,6.9008,144.91,144.89,2.0]
[1741332067542,6.9008,144.91,144.87,201.3442462]
[1741332067842,6.9008,144.91,144.87,199.3442462]
[1741332068042,7.04246157,144.92,144.89,2.0]
[1741332068242,0.14216157,144.95,144.91,36.8642462]
[1741332068427,1.6513,144.96,144.93,2.0]
[1741332069245,1.6513,144.96,144.94,2.0]
[1741332069637,6.8985,144.96,144.94,2.0]
[1741332069950,6.8985,144.96,144.95,2.0]
[1741332070133,0.14216157,144.98,144.95,2.0]
[1741332070333,6.897,144.99,144.96,2.0]
[1741332070543,0.14216157,144.99,144.97,2.0]
[1741332070744,12.8966,145.0,144.97,2.0]
[1741332071251,0.14216157,144.99,144.97,2.0]
[1741332071459,12.8966,145.0,144.97,2.0]
[1741332071635,0.14216157,144.99,144.97,2.0]
[1741332072133,6.8975,144.98,144.97,2.0]
[1741332073751,6.8975,144.98,144.95,2.0]
[1741332073953,7.03966157,144.98,144.95,2.0]
[1741332074151,0.14216157,144.97,144.94,2.0]
[1741332074347,0.14216157,144.97,144.92,82.68308997]
[1741332074556,0.14216157,144.97,144.93,2.0]
[1741332074873,6.8975,144.98,144.95,2.14216157]
[1741332075158,6.8975,144.98,144.97,2.0]
[1741332076139,24.28166157,144.99,144.95,2.14216157]
[1741332077051,24.28166157,144.99,144.94,2.0]
[1741332077246,24.28166157,144.99,144.95,2.0]
[1741332077741,24.28166157,144.99,144.93,2.14216157]
[1741332078145,58.76676157,144.99,144.93,2.14216157]
[1741332078863,18.64964886,144.98,144.92,82.5409284]
[1741332079035,100.64964886,144.98,144.92,2.0]
[1741332079234,0.14216157,144.96,144.92,2.0]
[1741332079436,0.14216157,144.96,144.93,2.0]
[1741332079637,18.79181043,144.96,144.9,2.0]
[1741332079852,18.79181043,144.96,144.92,2.0]
[1741332079853,0.14216157,144.96,144.92,2.0]
[1741332080032,18.79181043,144.96,144.89,34.8642462]
[1741332080235,20.37451043,144.94,144.88,2.0]
[1741332080464,0.14216157,144.92,144.88,2.0]
[1741332080648,88.44216157,144.92,144.87,164.48]
[1741332081265,0.14216157,144.9,144.85,2.0]
[1741332081660,22.73367746,144.89,144.83,80.5409284]
[1741332081970,100.79181043,144.88,144.82,2.0]
[1741332082347,0.14216157,144.86,144.82,2.0]
[1741332082553,0.14216157,144.86,144.81,2.033]
[1741332082554,1.79926157,144.86,144.81,2.033]
[1741332082859,1.79926157,144.86,144.81,0.033]
[1741332083033,1.79926157,144.86,144.81,0.17516157]
[1741332083435,1.79926157,144.86,144.82,2.0]
[1741332083859,0.14216157,144.86,144.81,2.033]
[1741332084447,6.9036,144.85,144.81,0.17516157]
[1741332085075,0.14216157,144.84,144.81,0.033]
[1741332085544,18.79181043,144.84,144.81,0.033]
[1741332086743,0.14216157,144.82,144.81,0.033]
[1741332088168,0.14216157,144.82,144.81,2.033]
[1741332088663,0.14216157,144.82,144.81,0.033]
[1741332088664,7.04726157,144.82,144.81,0.033]
[1741332089242,33.26768176,144.82,144.81,0.033]
[1741332089470,26.36258176,144.82,144.81,2.033]
[1741332089751,0.14216157,144.82,144.81,2.033]
[1741332089964,7.04726157,144.82,144.81,0.033]
[1741332092562,25.69691043,144.82,144.81,0.033]
[1741332094576,56.84272419,144.82,144.81,0.033]
[1741332094782,25.69691043,144.82,144.81,0.033]
[1741332095551,7.04726157,144.82,144.81,0.033]
[1741332095951,6.9051,144.82,144.81,0.033]
[1741332096479,6.9041,144.84,144.81,0.033]
[1741332096681,20.14216157,144.82,144.81,0.033]
[1741332097754,27.04726157,144.82,144.81,0.033]
[1741332098182,7.04646157,144.84,144.81,0.033]
[1741332098355,82.0,144.85,144.83,2.0]
[1741332098555,88.903,144.87,144.83,2.0]
[1741332098756,0.14216157,144.86,144.83,2.0]
[1741332099060,88.903,144.87,144.83,2.0]
[1741332099274,0.14216157,144.86,144.83,2.0]
[1741332099691,88.903,144.87,144.83,2.0]
[1741332100194,32.70941184,144.88,144.84,21.89378344]
[1741332100195,1.5947,144.88,144.84,21.89378344]
[1741332100400,6.6587,144.92,144.85,23.75162187]
[1741332100401,6.9013,144.9,144.85,23.75162187]
[1741332100573,6.9013,144.9,144.86,21.75162187]
[1741332100904,0.14216157,144.89,144.86,2.0]
[1741332101072,16.51781486,144.89,144.86,2.0]
[1741332101276,18.64964886,144.88,144.84,2.0]
[1741332101485,0.14216157,144.87,144.81,2.033]
[1741332101787,0.14216157,144.86,144.84,2.0]
[1741332102612,0.14216157,144.86,144.82,23.75162187]
[1741332103586,6.9036,144.85,144.81,2.033]
[1741332103793,6.9036,144.85,144.82,2.0]
[1741332104687,6.9036,144.85,144.83,2.0]
[1741332105388,6.9036,144.85,144.82,2.0]
[1741332106091,6.9036,144.85,144.83,2.0]
[1741332106482,7.04576157,144.85,144.84,2.0]
[1741332107701,7.04576157,144.85,144.82,23.75162187]
[1741332108290,7.04576157,144.85,144.83,2.0]
[1741332108795,7.04576157,144.85,144.79,2.0]
[1741332108796,100.79181043,144.84,144.79,2.0]
[1741332108979,82.0,144.83,144.77,2.0]
[1741332109177,0.14216157,144.81,144.76,104.29255027]
[1741332109393,0.14216157,144.81,144.76,80.5409284]
[1741332109592,18.79181043,144.81,144.75,2.0]
[1741332109786,24.1711,144.8,144.74,2.0]
[1741332109986,24.1711,144.8,144.74,23.75162187]
[1741332110570,18.79181043,144.79,144.73,30.13302187]
[1741332110776,100.79181043,144.79,144.73,2.0]
[1741332111072,100.79181043,144.79,144.73,23.75162187]
[1741332111289,100.79181043,144.79,144.73,21.75162187]
[1741332111495,100.79181043,144.79,144.74,2.0]
[1741332111795,89.04876157,144.79,144.76,23.75162187]
[1741332111986,89.04876157,144.79,144.76,2.0]
[1741332112183,0.14216157,144.79,144.76,23.75162187]
[1741332112386,0.14216157,144.79,144.78,2.0]
[1741332113499,7.04866157,144.79,144.77,2.0]
[1741332113700,34.5185,144.85,144.77,2.0]
[1741332113701,83.6086,144.86,144.81,2.0]
[1741332113874,88.9023,144.88,144.85,2.0]
[1741332114074,82.0,144.88,144.86,2.0]
[1741332114406,82.03,144.9,144.87,2.0]
[1741332114695,0.03,144.9,144.88,2.0]
[1741332115104,0.03,144.9,144.87,2.0]
[1741332115307,0.03,144.9,144.86,2.0]
[1741332115308,0.17216157,144.9,144.86,2.0]
[1741332115501,0.03,144.9,144.87,23.75162187]
[1741332115806,0.03,144.9,144.89,2.0]
[1741332116120,24.03758784,144.9,144.88,2.0]
[1741332116498,0.03,144.9,144.86,2.0]
[1741332117008,100.79181043,144.89,144.84,2.0]
[1741332117314,100.79181043,144.89,144.83,2.0]
[1741332117689,33.37726182,144.88,144.83,2.0]
[1741332117992,6.9032,144.86,144.83,2.0]
[1741332118187,0.14216157,144.85,144.82,2.0]
[1741332118392,0.14216157,144.85,144.81,2.033]
[1741332118587,0.14216157,144.85,144.81,0.033]
[1741332118995,18.79181043,144.85,144.81,0.033]
[1741332120221,0.14216157,144.85,144.82,36.77669835]
[1741332120511,7.04576157,144.86,144.81,36.80969835]
[1741332120700,18.64964886,144.85,144.81,0.033]
[1741332121016,18.64964886,144.85,144.8,34.77669835]
[1741332121215,82.0,144.86,144.82,34.77669835]
[1741332121398,17.284,144.9,144.83,34.77669835]
[1741332121399,88.28,144.89,144.83,34.77669835]
[1741332121615,95.1818,144.89,144.83,34.77669835]
[1741332121806,0.14216157,144.88,144.83,34.77669835]
[1741332122204,7.04476157,144.88,144.83,34.77669835]
[1741332122403,6.9026,144.88,144.83,34.77669835]
[1741332122590,0.14216157,144.88,144.84,34.77669835]
[1741332122795,24.97964886,144.9,144.86,0.14216157]
[1741332122796,24.4208357,144.87,144.86,0.14216157]
[1741332123119,0.03,144.9,144.86,0.14216157]
[1741332123120,6.9313,144.9,144.87,0.14216157]
[1741332123298,0.03,144.9,144.87,34.91885992]
[1741332123918,0.14216157,144.89,144.85,34.77669835]
[1741332124225,6.9022,144.88,144.84,115.31762675]
[1741332124405,6.9022,144.88,144.83,0.14216157]
[1741332124603,6.9022,144.88,144.84,34.77669835]
[1741332124819,7.04406157,144.89,144.85,34.77669835]
[1741332125718,7.04406157,144.89,144.84,34.77669835]
[1741332127721,18.64964886,144.88,144.83,34.77669835]
[1741332127902,18.64964886,144.88,144.81,34.77669835]
[1741332127903,0.14216157,144.87,144.81,34.77669835]
[1741332128103,82.14216157,144.87,144.81,34.77669835]
[1741332128504,42.81084886,144.86,144.8,34.80969835]
[1741332129211,6.9032,144.86,144.82,34.77669835]
[1741332129406,0.14216157,144.85,144.82,34.77669835]
[1741332129616,0.14216157,144.85,144.8,0.033]
[1741332129617,18.79181043,144.85,144.8,0.033]
[1741332131509,0.14216157,144.83,144.8,0.033]
[1741332131709,107.09181043,144.83,144.75,80.5409284]
[1741332132014,0.14216157,144.79,144.7,6.6419]
[1741332132217,18.79181043,144.77,144.7,34.77669835]
[1741332132616,18.79181043,144.75,144.68,34.77669835]
[1741332132815,82.0,144.74,144.68,34.77669835]
[1741332133016,82.0,144.74,144.67,115.35062675]
[1741332133315,24.1829,144.73,144.68,0.14216157]
[1741332133631,100.79181043,144.72,144.67,0.033]
[1741332134140,100.79181043,144.72,144.67,34.80969835]
[1741332134313,82.14216157,144.72,144.68,34.91885992]
[1741332134513,82.14216157,144.72,144.67,34.80969835]
[1741332134726,82.14216157,144.72,144.67,0.033]
[1741332135228,82.14216157,144.72,144.68,34.77669835]
[1741332135621,6.9103,144.71,144.68,34.77669835]
[1741332136617,89.05226157,144.72,144.69,34.77669835]
[1741332136823,13.2094,144.73,144.7,34.77669835]
[1741332138406,13.2094,144.73,144.69,34.77669835]
[1741332138622,0.14216157,144.72,144.67,115.35062675]
[1741332138817,0.14216157,144.72,144.67,0.033]
[1741332139134,0.14216157,144.72,144.67,0.17516157]
[1741332139709,6.9103,144.71,144.67,0.17516157]
[1741332140716,0.14216157,144.7,144.67,0.033]
[1741332141427,0.14216157,144.68,144.67,0.033]
[1741332141617,107.09181043,144.68,144.66,0.033]
[1741332141819,114.00361043,144.68,144.66,0.033]
[1741332142507,114.00361043,144.68,144.66,0.0001]
[1741332143909,109.80836707,144.68,144.66,0.0001]
[1741332144236,105.67738372,144.68,144.66,0.0001]
[1741332144816,82.0,144.67,144.66,0.0001]
[1741332145015,82.0,144.67,144.57,34.77669835]
[1741332145016,20.0,144.63,144.57,34.77669835]
[1741332145219,26.3,144.63,144.55,34.80969835]
[1741332145547,82.0,144.62,144.55,34.80969835]
[1741332145850,0.14216157,144.6,144.55,34.80969835]
[1741332146508,88.9151,144.61,144.58,34.77669835]
[1741332146819,88.9151,144.61,144.57,34.77669835]
[1741332147724,88.9151,144.61,144.55,0.17516157]
[1741332147725,0.14216157,144.6,144.56,34.77669835]
[1741332147925,6.9161,144.59,144.56,34.77669835]
[1741332149442,6.9161,144.59,144.55,0.17516157]
[1741332149618,6.9161,144.59,144.56,34.77669835]
[1741332150845,82.0,144.61,144.57,34.77669835]
[1741332151026,82.0,144.61,144.59,34.77669835]
[1741332151338,82.0,144.64,144.59,34.77669835]
[1741332151539,0.14216157,144.63,144.59,34.77669835]
[1741332151842,0.14216157,144.63,144.58,34.77669835]
[1741332152342,7.05646157,144.63,144.59,34.77669835]
[1741332152543,6.9138,144.64,144.6,34.77669835]
[1741332153549,6.9138,144.64,144.59,34.91885992]
[1741332154359,6.9138,144.64,144.6,34.77669835]
[1741332154566,6.9138,144.64,144.59,34.91885992]
[1741332154967,6.9138,144.64,144.6,34.77669835]
[1741332155455,6.9138,144.64,144.59,34.91885992]
[1741332155624,6.9138,144.64,144.59,34.77669835]
[1741332156623,6.9138,144.64,144.59,21.80874067]
[1741332157326,24.198,144.64,144.59,21.80874067]
[1741332158031,0.14216157,144.63,144.56,21.84174067]
[1741332158246,0.14216157,144.61,144.56,21.84174067]
[1741332159178,100.79181043,144.61,144.56,0.033]
[1741332159331,0.14216157,144.59,144.56,0.033]
[1741332161351,6.9165,144.58,144.56,0.033]
[1741332163759,0.14216157,144.57,144.56,0.033]
[1741332165164,25.03181043,144.57,144.55,0.033]
[1741332165355,18.64964886,144.55,144.53,0.033]
[1741332165539,88.9185,144.54,144.53,0.033]
[1741332167944,25.71031043,144.54,144.53,0.033]
[1741332171167,29.18932311,144.54,144.53,0.033]
[1741332171569,10.53967425,144.54,144.53,0.033]
[1741332175273,92.53967425,144.54,144.53,0.033]
[1741332177773,85.47901268,144.54,144.53,0.033]
[1741332178080,13.1581,144.55,144.53,0.033]
[1741332178976,0.14216157,144.54,144.53,0.033]
[1741332179265,18.79181043,144.54,144.53,0.033]
[1741332179658,100.79181043,144.54,144.53,0.033]
[1741332181175,107.71031043,144.54,144.53,0.033]
[1741332181366,25.71031043,144.54,144.53,0.0001]
[1741332183678,43.00651043,144.54,144.47,0.033]
[1741332183977,18.79181043,144.52,144.47,0.033]
[1741332184188,18.79181043,144.52,144.47,21.84174067]
[1741332185082,6.9199,144.51,144.47,0.033]
[1741332185470,0.14216157,144.5,144.47,0.033]
[1741332186165,0.14216157,144.5,144.47,0.103281]
[1741332187571,100.64964886,144.52,144.48,21.80874067]
[1741332187785,6.9199,144.51,144.48,21.80874067]
[1741332187953,6.9199,144.51,144.47,21.91202167]
[1741332189078,0.14216157,144.5,144.47,0.103281]
[1741332189650,7.06296157,144.49,144.48,4.92131586]
[1741332189855,7.06296157,144.49,144.47,0.103281]
[1741332190990,24.223,144.49,144.45,0.033]
[1741332191391,6.9208,144.49,144.46,21.80874067]
[1741332191578,6.9208,144.49,144.47,21.80874067]
[1741332191775,6.9208,144.49,144.45,21.84174067]
[1741332191987,24.223,144.49,144.45,0.033]
[1741332192300,24.223,144.49,144.45,21.84174067]
[1741332193372,24.223,144.49,144.45,0.033]
[1741332193700,0.14216157,144.48,144.45,0.033]
[1741332195174,18.79181043,144.48,144.45,0.033]
[1741332195895,6.9218,144.47,144.45,0.033]
[1741332201004,100.79181043,144.46,144.45,0.033]
[1741332201212,18.79181043,144.46,144.44,0.033]
[1741332201522,100.64964886,144.45,144.44,0.033]
[1741332201698,106.90964886,144.45,144.44,0.033]
[1741332201899,107.05181043,144.45,144.41,0.033]
[1741332202109,100.79181043,144.44,144.41,0.033]
[1741332202591,0.14216157,144.42,144.41,0.033]
[1741332205315,82.0,144.43,144.41,0.033]
[1741332206408,88.9237,144.43,144.41,0.033]
[1741332207307,0.14216157,144.42,144.41,0.033]
[1741332208811,7.06636157,144.42,144.41,0.033]
[1741332212127,85.48316431,144.43,144.41,0.033]
[1741332212506,80.99005365,144.43,144.41,0.033]
[1741332213615,6.9242,144.42,144.41,0.033]
[1741332220389,87.91385365,144.43,144.41,0.033]
[1741332220594,6.9238,144.43,144.41,14.031118]
[1741332220796,81.0312749,144.47,144.42,13.998118]
[1741332221016,6.9224,144.46,144.43,13.998118]
[1741332221218,6.9224,144.46,144.41,0.033]
[1741332221219,6.9224,144.46,144.42,13.998118]
[1741332221419,6.9224,144.46,144.41,14.031118]
[1741332221626,6.9224,144.46,144.42,13.998118]
[1741332224035,6.9224,144.46,144.41,14.031118]
[1741332224612,0.03,144.43,144.41,14.031118]
[1741332225430,0.03,144.43,144.41,0.033]
[1741332227301,0.03,144.43,144.41,14.031118]
[1741332227933,0.03,144.43,144.41,0.033]
[1741332228456,17.3082,144.44,144.41,0.033]
[1741332228961,6.26,144.43,144.41,0.033]
[1741332229258,24.37917956,144.42,144.41,0.033]
[1741332229755,6.26,144.43,144.41,0.033]
[1741332230256,6.9242,144.42,144.41,0.033]
[1741332231932,6.9242,144.42,144.41,4.7919739]
[1741332232245,7.06636157,144.42,144.41,0.033]
[1741332232767,7.06636157,144.42,144.4,0.033]
[1741332234344,12.11126125,144.41,144.4,0.033]
[1741332237235,12.25342282,144.41,144.4,0.033]
[1741332239454,0.14216157,144.4,144.38,0.033]
[1741332239638,77.64905091,144.4,144.38,0.033]
[1741332239964,77.50688934,144.4,144.38,0.033]
[1741332240457,5.18656125,144.39,144.38,0.033]
[1741332241866,12.11216125,144.39,144.38,0.033]
[1741332244958,5.18656125,144.39,144.38,14.031118]
[1741332245359,12.11216125,144.39,144.38,0.033]
[1741332246354,12.11216125,144.39,144.28,8.3146]
[1741332246355,0.14216157,144.36,144.28,8.3146]
[1741332246540,0.14216157,144.34,144.23,80.5739284]
[1741332246744,1.5842,144.31,144.23,0.033]
[1741332246946,0.14216157,144.29,144.23,14.031118]
[1741332247243,6.26,144.28,144.24,13.998118]
[1741332247444,6.26,144.28,144.25,13.998118]
[1741332247637,6.26,144.28,144.24,13.998118]
[1741332248037,6.26,144.28,144.23,14.031118]
[1741332248466,12.11796125,144.27,144.23,14.031118]
[1741332248758,12.11796125,144.27,144.23,21.95202507]
[1741332248963,12.11796125,144.27,144.23,0.033]
[1741332248964,29.44656125,144.27,144.23,0.033]
[1741332249662,20.0,144.24,144.23,0.033]
[1741332250536,26.9328,144.24,144.23,0.033]
[1741332250740,20.0,144.24,144.23,0.033]
[1741332250942,25.18656125,144.24,144.23,0.033]
[1741332251960,38.52152282,144.24,144.23,0.033]
[1741332252256,0.14216157,144.23,144.16,80.5409284]
[1741332252453,6.9338,144.22,144.17,21.91902507]
[1741332252652,0.14216157,144.23,144.17,21.91902507]
[1741332252862,38.37946125,144.24,144.18,22.06118664]